bitfinex/quotes_ETHUSD_20240910
["timestamp","ask_amount","ask_price","bid_price","bid_amount"]
[1726011642517,0.55,2393.5,2393.2,0.07360778]
[1726011644227,0.55,2393.5,2393.2,4.25194778]
[1726011644442,0.55,2393.5,2393.2,0.07360778]
[1726011647870,1.31202181,2393.6,2393.3,2.52196023]
[1726011648191,0.0042001,2393.8,2393.4,4.17798]
[1726011648397,0.0042001,2393.8,2393.5,0.08354523]
[1726011648694,0.0042001,2393.8,2393.5,0.15688073]
[1726011648695,1.31622191,2393.8,2393.5,0.15688073]
[1726011648891,0.0042001,2393.8,2393.5,0.15688073]
[1726011649391,1.31622191,2393.8,2393.5,0.0733355]
[1726011649579,0.55,2393.7,2393.5,0.0733355]
[1726011649746,6.03966181,2393.7,2393.5,0.0733355]
[1726011650203,4.1778,2393.6,2393.1,6.70062935]
[1726011650500,0.55,2393.5,2393.2,0.07322384]
[1726011650965,1.86202181,2393.5,2393.3,0.07321331]
[1726011651296,1.86202181,2393.5,2393.0,4.26237703]
[1726011651297,4.72801,2393.5,2393.0,4.26237703]
[1726011651795,4.72801,2393.5,2393.1,0.0732401]
[1726011652155,4.17816,2393.4,2393.1,0.0732401]
[1726011652347,0.55,2393.3,2393.1,0.0732401]
[1726011652547,0.55,2393.3,2393.0,0.08356703]
[1726011652789,0.55,2393.3,2393.2,0.07322957]
[1726011652997,0.55,2393.4,2393.1,0.0732401]
[1726011653179,4.72816,2393.4,2393.2,0.07322957]
[1726011653354,0.55,2393.4,2393.2,0.07322957]
[1726011653555,0.55,2393.4,2393.0,4.26239703]
[1726011654300,0.55,2393.4,2393.1,0.0732401]
[1726011655084,4.72816,2393.4,2393.1,0.0732401]
[1726011655384,4.1785,2393.2,2393.1,0.0732401]
[1726011655566,4.7285,2393.2,2393.1,0.0732401]
[1726011655750,1.31202181,2393.3,2392.9,4.17889]
[1726011655952,5.49010181,2393.5,2393.1,0.07340627]
[1726011656157,0.55,2393.4,2393.0,0.15698185]
[1726011656454,0.55,2393.4,2393.1,0.07340627]
[1726011656896,1.86202181,2393.4,2393.1,0.07340627]
[1726011657207,6.04019181,2393.4,2393.1,0.07340627]
[1726011657863,6.04019181,2393.4,2392.9,4.17889]
[1726011658174,6.04019181,2393.4,2393.2,0.07339574]
[1726011658369,1.86202181,2393.4,2392.9,8.35782]
[1726011658584,1.86202181,2393.4,2393.3,0.07338521]
[1726011658772,1.86202181,2393.4,2392.9,8.35782]
[1726011658973,1.86202181,2393.4,2393.3,0.07338521]
[1726011659199,0.55,2393.4,2393.3,0.07338521]
[1726011659508,0.55,2393.4,2393.3,0.0734024]
[1726011659666,0.55,2393.4,2393.0,4.26238535]
[1726011659860,0.55,2393.4,2393.3,0.0734998]
[1726011660060,1.86202181,2393.4,2393.0,4.26238535]
[1726011660296,0.55,2393.4,2393.3,0.0734998]
[1726011660502,0.55,2393.4,2393.2,0.0835648]
[1726011660672,0.55,2393.4,2393.3,0.07346542]
[1726011661110,0.55,2393.4,2393.2,0.86460903]
[1726011661403,0.55,2393.4,2393.3,0.07346542]
[1726011661607,0.55,2393.4,2393.2,0.86460903]
[1726011662202,0.55,2393.4,2393.3,0.07344249]
[1726011662408,1.86202181,2393.4,2393.2,0.0835648]
[1726011662560,1.86202181,2393.4,2393.3,0.07343676]
[1726011663003,1.86202181,2393.4,2393.1,6.70051215]
[1726011663169,1.86202181,2393.4,2393.2,0.07344729]
[1726011665319,1.31202181,2393.3,2393.2,0.07344729]
[1726011667413,0.55,2393.3,2393.2,0.07344729]
[1726011667684,2.3049493,2393.3,2393.0,0.08356703]
[1726011667917,0.55,2393.2,2393.0,0.08356703]
[1726011668225,1.8666548,2393.2,2392.9,5.258544]
[1726011670306,1.8666548,2393.2,2392.9,9.437484]
[1726011670534,1.8666548,2393.2,2392.9,5.258544]
[1726011670742,1.8666548,2393.2,2393.0,0.08356849]
[1726011672041,1.8666548,2393.2,2392.9,5.258544]
[1726011673296,1.8666548,2393.2,2393.0,0.08356857]
[1726011673496,1.3166548,2393.2,2393.0,0.08356857]
[1726011674497,1.3166548,2393.2,2392.9,4.17889]
[1726011674703,0.55,2393.1,2392.8,4.26267809]
[1726011674903,0.55,2393.1,2392.9,0.44996755]
[1726011675104,0.55,2393.1,2392.8,4.26267809]
[1726011675301,1.8666548,2393.1,2392.8,4.26267809]
[1726011675719,0.55,2393.1,2392.8,4.26267809]
[1726011676130,0.55,2393.1,2392.9,0.44994744]
[1726011676444,0.55,2393.1,2392.9,8.35783]
[1726011676655,0.55,2393.1,2392.9,4.26248209]
[1726011677154,1.3166548,2393.2,2393.0,4.1787]
[1726011677315,1.3166548,2393.3,2393.1,0.92768598]
[1726011677655,1.3166548,2393.3,2393.1,5.10626598]
[1726011679014,1.3166548,2393.2,2393.1,5.10626598]
[1726011679544,1.3166548,2393.3,2393.1,5.10626598]
[1726011680699,1.3166548,2393.3,2393.1,0.92768598]
[1726011680905,1.3166548,2393.3,2393.1,0.08356777]
[1726011680906,1.3166548,2393.2,2393.1,0.08356777]
[1726011681101,1.3166548,2393.2,2393.0,6.58341509]
[1726011681710,1.3166548,2393.2,2393.0,4.26231509]
[1726011682333,1.3166548,2393.2,2393.0,4.17875]
[1726011682536,1.3166548,2393.2,2393.1,4.17868]
[1726011682739,1.3166548,2393.2,2393.0,4.26231572]
[1726011682920,1.3166548,2393.3,2393.1,4.17868]
[1726011683302,1.3166548,2393.3,2393.1,4.26224364]
[1726011683501,1.3166548,2393.2,2393.1,4.26224364]
[1726011683746,1.3166548,2393.3,2393.1,4.17868]
[1726011683990,1.3166548,2393.3,2393.1,4.26224398]
[1726011684867,1.3166548,2393.2,2393.1,4.26224398]
[1726011685358,1.3166548,2393.2,2393.1,0.08356398]
[1726011685856,1.3166548,2393.2,2393.0,4.17875]
[1726011686063,1.3166548,2393.2,2393.1,0.08356532]
[1726011686378,1.3166548,2393.2,2393.0,4.26231532]
[1726011686737,1.3166548,2393.3,2393.0,8.44108532]
[1726011686938,1.3166548,2393.2,2393.0,8.44108532]
[1726011687437,1.3166548,2393.2,2393.0,9.0896962]
[1726011687632,1.3166548,2393.2,2393.0,4.9109262]
[1726011687832,1.3166548,2393.2,2393.0,8.44107532]
[1726011688032,1.3166548,2393.2,2393.0,4.26231532]
[1726011688572,1.3166548,2393.2,2393.0,4.17875]
[1726011688774,1.3166548,2393.2,2393.0,8.35752]
[1726011688946,1.3166548,2393.3,2393.1,4.17868]
[1726011689448,1.3166548,2393.3,2393.1,4.26224335]
[1726011689643,1.3166548,2393.3,2393.2,0.07349887]
[1726011690199,1.31566248,2393.3,2393.2,0.07349887]
[1726011691279,1.31566248,2393.3,2393.2,9.39607505]
[1726011691496,7.34,2393.7,2393.5,4.17783]
[1726011691701,0.0042001,2393.8,2393.5,4.17783]
[1726011691997,0.0042001,2393.8,2393.6,0.15695554]
[1726011692201,1.75586557,2393.7,2393.6,0.15695554]
[1726011693067,1.76006567,2393.8,2393.6,0.15695554]
[1726011694257,0.0042001,2393.8,2393.6,0.15695554]
[1726011694896,0.0042001,2393.8,2393.6,0.07341091]
[1726011695262,2.2952,2393.7,2393.6,0.07341091]
[1726011695399,2.8452,2393.7,2393.2,4.26204212]
[1726011695599,0.55,2393.6,2393.2,4.26204212]
[1726011696595,0.55,2393.6,2393.3,4.1783]
[1726011698315,1.75667555,2393.5,2393.3,4.1783]
[1726011699414,1.75667555,2393.5,2393.3,5.02234021]
[1726011700802,1.75667555,2393.5,2393.3,9.20058021]
[1726011701189,1.75667555,2393.5,2393.4,4.17815]
[1726011703521,1.31694968,2393.5,2393.4,4.17815]
[1726011704575,1.31694968,2393.5,2393.4,0.07304234]
[1726011713931,1.31694968,2393.5,2393.2,4.26201754]
[1726011714129,1.31694968,2393.5,2393.4,0.07303087]
[1726011714332,1.31694968,2393.5,2393.3,4.2513514]
[1726011714541,1.31694968,2393.5,2393.4,0.07303087]
[1726011715109,5.13974457,2393.5,2393.4,0.07303087]
[1726011715313,5.13974457,2393.5,2392.9,0.08356645]
[1726011715314,4.17847,2393.3,2392.9,0.08356645]
[1726011715513,4.26194089,2393.2,2392.9,0.08356645]
[1726011715733,4.26194089,2393.2,2393.0,0.07307872]
[1726011716049,1.31684089,2393.1,2393.0,0.07307872]
[1726011716552,6.48446786,2393.1,2393.0,0.07307872]
[1726011717155,2.30578786,2393.1,2393.0,0.07322198]
[1726011717302,0.55,2393.1,2392.8,0.0835719]
[1726011717642,1.31666582,2393.0,2392.8,0.0835719]
[1726011718352,1.86666582,2393.1,2392.8,0.0835719]
[1726011719002,6.04535582,2393.1,2392.8,0.0835719]
[1726011719208,6.04535582,2393.1,2392.7,0.08357437]
[1726011719410,6.04535582,2393.1,2392.7,4.26291437]
[1726011719411,1.86666582,2393.1,2392.7,4.26291437]
[1726011719625,1.86666582,2393.1,2392.8,0.1570179]
[1726011721253,1.31666582,2393.1,2393.0,8.3577]
[1726011721426,1.31666582,2393.4,2393.0,1.16413822]
[1726011721754,1.31666582,2393.5,2393.3,4.17833]
[1726011721957,1.31666582,2393.5,2393.3,4.2618856]
[1726011722140,1.31666582,2393.5,2393.4,0.07330592]
[1726011722757,1.31666582,2393.6,2393.4,0.07330592]
[1726011723113,1.31666582,2393.6,2393.4,4.25139592]
[1726011723363,1.31666582,2393.7,2393.5,4.17788]
[1726011723531,1.31666582,2393.7,2393.5,5.1364766]
[1726011723865,1.31666582,2393.7,2393.6,0.07321037]
[1726011725231,1.31666582,2393.7,2393.6,4.25101037]
[1726011725473,0.0042001,2393.8,2393.7,4.17763]
[1726011725474,1.32086592,2393.8,2393.7,4.17763]
[1726011725676,0.0042001,2393.8,2393.7,12.88102231]
[1726011726361,0.0042001,2393.8,2393.7,17.05865231]
[1726011726609,0.0042001,2393.8,2393.7,17.97791191]
[1726011726809,0.0042001,2393.8,2393.7,19.35669961]
[1726011727261,0.0042001,2393.8,2393.7,17.97791191]
[1726011727682,0.0042001,2393.8,2393.7,17.97725881]
[1726011727903,0.0042001,2393.8,2393.7,17.05865231]
[1726011728604,0.0042001,2393.8,2393.7,11.24862071]
[1726011728806,0.0042001,2393.8,2393.7,12.88102231]
[1726011729369,0.0042001,2393.8,2393.7,17.05865231]
[1726011736878,0.0042001,2393.8,2393.7,8.95762071]
[1726011737205,0.0042001,2393.8,2393.7,8.42830515]
[1726011737416,0.0042001,2393.8,2393.7,8.51184234]
[1726011751146,0.0042001,2393.8,2393.7,4.33421234]
[1726011752864,0.0042001,2393.8,2393.7,10.14424394]
[1726011754004,0.0042001,2393.8,2393.7,8.51184234]
[1726011754200,0.0042001,2393.8,2393.7,10.26746239]
[1726011757046,0.0042001,2393.8,2393.7,14.37906399]
[1726011763026,0.0042001,2393.8,2393.7,10.26746239]
[1726011778250,0.0042001,2393.8,2393.7,4.33421234]
[1726011780964,0.0042001,2393.8,2393.7,0.07304515]
[1726011781268,1.75998796,2393.8,2393.4,4.17805]
[1726011781486,6.5094501,2393.8,2393.7,0.06531801]
[1726011781796,4.1783,2393.4,2393.0,0.65392901]
[1726011782093,1.31556121,2393.2,2393.0,0.65392901]
[1726011782301,1.31455088,2393.2,2393.1,0.06322451]
[1726011782501,2.3278,2393.2,2393.1,0.06322451]
[1726011782658,3.64235088,2393.2,2393.1,0.06322451]
[1726011784397,8.1387016,2393.2,2393.1,0.06322451]
[1726011784555,15.05980361,2393.2,2393.1,0.06322451]
[1726011784757,4.17937,2392.7,2392.6,0.05080417]
[1726011784986,9.45308554,2392.7,2392.6,0.05080417]
[1726011785296,8.1395716,2392.7,2392.6,0.11261802]
[1726011785450,8.1395716,2392.7,2392.6,0.05080417]
[1726011785855,8.1395716,2392.7,2392.6,0.11261777]
[1726011786090,2.3278,2392.7,2392.6,0.05080417]
[1726011786297,2.3278,2392.7,2392.6,0.11261777]
[1726011786465,2.3278,2392.7,2392.6,0.05080417]
[1726011786675,2.3278,2392.7,2392.6,0.11261777]
[1726011786875,2.3278,2392.7,2392.6,0.05080417]
[1726011787072,2.3278,2392.7,2392.6,0.11261777]
[1726011787270,2.3278,2392.7,2392.6,0.05080417]
[1726011787771,2.3278,2392.7,2392.6,0.11261777]
[1726011787982,2.3278,2392.7,2392.6,0.05080417]
[1726011788199,2.3278,2392.7,2392.6,0.11261777]
[1726011788360,2.3278,2392.7,2392.6,0.05080417]
[1726011788559,2.3278,2392.7,2392.6,0.11261777]
[1726011788759,6.50717,2392.7,2392.6,0.05080417]
[1726011789069,12.3189416,2392.7,2392.6,0.11261777]
[1726011789263,12.8689416,2392.7,2392.6,0.05080417]
[1726011791064,12.8689416,2392.7,2392.6,0.11261777]
[1726011791281,12.8689416,2392.7,2392.6,0.05080417]
[1726011791481,12.8689416,2392.7,2392.6,0.11261777]
[1726011791707,12.8689416,2392.7,2392.6,0.05080417]
[1726011793026,17.0483116,2392.7,2392.6,0.05080417]
[1726011793182,20.0483116,2392.7,2392.6,0.05080417]
[1726011802643,20.0483116,2392.7,2391.9,0.0261827]
[1726011802644,2.3099,2392.0,2391.9,0.0261827]
[1726011802933,4.18053,2392.1,2391.9,0.0261827]
[1726011803090,0.55,2392.0,2391.9,0.08881546]
[1726011803290,0.55,2392.0,2391.9,0.0261827]
[1726011803487,0.55,2392.0,2391.9,0.08881546]
[1726011803725,0.55,2392.0,2391.9,0.0261827]
[1726011803934,0.55,2392.0,2391.9,0.08881546]
[1726011804105,0.55,2392.0,2391.9,0.0261827]
[1726011804291,0.55,2392.0,2391.9,0.08881546]
[1726011804490,0.55,2392.0,2391.9,0.0261827]
[1726011804692,0.55,2392.0,2391.9,0.08881546]
[1726011805023,2.3099,2392.2,2391.9,0.0901968]
[1726011805024,3.55,2392.1,2391.9,0.0901968]
[1726011805513,3.55,2392.1,2391.9,0.0261827]
[1726011805703,3.55,2392.1,2392.0,0.06399208]
[1726011806333,3.0,2392.1,2392.0,0.06399208]
[1726011806830,8.46007,2392.3,2392.0,0.06399208]
[1726011806831,3.0,2392.2,2392.0,0.06399208]
[1726011807928,4.28,2392.3,2392.0,0.06399208]
[1726011812738,4.28,2392.3,2392.0,2.49189208]
[1726011823017,4.28,2392.3,2392.1,4.18033]
[1726011823259,4.17956,2392.6,2392.1,4.18033]
[1726011823562,0.55,2392.5,2392.2,0.06390217]
[1726011824620,6.3622316,2392.5,2392.2,0.06390217]
[1726011824839,4.1799,2392.4,2392.0,2.4279]
[1726011825126,0.55,2392.3,2392.0,2.4279]
[1726011826262,4.17958,2392.6,2392.1,4.18031]
[1726011826435,0.55,2392.5,2392.1,4.18031]
[1726011826760,0.55,2392.5,2392.1,4.26391003]
[1726011827269,1.86351394,2392.5,2392.1,4.26391003]
[1726011827779,1.86351394,2392.5,2392.0,10.78889]
[1726011829481,1.31351394,2392.4,2392.0,6.60839]
[1726011830469,1.31351394,2392.4,2392.0,10.78891]
[1726011831055,1.31351394,2392.4,2392.0,6.60839]
[1726011831278,1.31351394,2392.3,2392.0,6.60839]
[1726011832051,1.31351394,2392.3,2391.9,4.2069127]
[1726011833271,1.31351394,2392.2,2391.9,4.2069127]
[1726011839687,1.31351394,2392.2,2392.0,0.06370525]
[1726011841187,1.31351394,2392.1,2392.0,0.06370525]
[1726011842175,1.31351394,2392.1,2392.0,4.24430525]
[1726011842407,1.31351394,2392.1,2392.0,2.46250525]
[1726011842778,1.31351394,2392.1,2392.0,6.64310525]
[1726011842975,1.31351394,2392.2,2392.1,4.18042]
[1726011843179,1.31351394,2392.2,2392.1,4.24416059]
[1726011846125,1.75135193,2392.3,2392.1,4.24416059]
[1726011846319,1.31484397,2392.2,2392.1,4.24416059]
[1726011846519,1.75135193,2392.3,2392.1,4.24416059]
[1726011846720,1.31485758,2392.2,2392.1,4.24416059]
[1726011846932,1.75135193,2392.3,2392.1,4.24416059]
[1726011847132,1.31485738,2392.2,2392.1,4.24416059]
[1726011847539,1.75135193,2392.3,2392.1,4.24416059]
[1726011849296,1.75135193,2392.2,2392.1,4.24416059]
[1726011853341,1.75135193,2392.2,2392.1,0.06374059]
[1726011854550,2.3478,2392.4,2392.1,0.06374059]
[1726011854551,1.31590289,2392.4,2392.3,8.36014]
[1726011854754,1.31590289,2392.7,2392.4,6.4667]
[1726011854903,1.31590289,2392.7,2392.6,4.17955]
[1726011855103,1.31590289,2392.7,2392.6,10.72948353]
[1726011855302,1.31590289,2392.8,2392.7,8.35874]
[1726011855540,1.31590289,2392.9,2392.8,4.1792]
[1726011855724,1.31590289,2392.9,2392.8,4.26277519]
[1726011855925,1.31590289,2392.9,2392.8,4.32629291]
[1726011856441,1.31590289,2393.1,2393.0,10.6445]
[1726011856646,1.576714,2393.3,2393.1,4.17868]
[1726011856647,2.89261689,2393.3,2393.1,4.17868]
[1726011857021,2.89261689,2393.3,2393.2,4.24159717]
[1726011857022,1.576714,2393.3,2393.2,4.24159717]
[1726011857455,2.89097533,2393.3,2393.2,0.06309717]
[1726011857656,2.89097533,2393.3,2393.0,6.54921665]
[1726011857822,2.89097533,2393.3,2393.2,0.06309717]
[1726011858155,2.89097533,2393.3,2393.0,6.54921665]
[1726011858453,2.89097533,2393.3,2393.1,0.0631077]
[1726011858747,1.576714,2393.3,2393.1,0.0631077]
[1726011859059,1.576714,2393.3,2393.1,4.2417777]
[1726011864266,1.576714,2393.3,2393.1,5.31252047]
[1726011865640,1.576714,2393.3,2393.1,0.0631077]
[1726011871144,1.576714,2393.3,2392.9,4.17897]
[1726011871472,8.239144,2393.3,2392.6,4.17947]
[1726011871668,0.55,2393.2,2393.0,0.06250476]
[1726011871887,4.72853,2393.2,2392.6,4.26304978]
[1726011872121,4.72853,2393.2,2393.1,0.06249423]
[1726011872287,4.72853,2393.2,2392.6,4.26304978]
[1726011872613,4.72853,2393.2,2393.1,0.06249423]
[1726011872916,4.72853,2393.2,2392.6,4.26304978]
[1726011873219,4.72853,2393.2,2393.1,0.06249423]
[1726011873414,4.72853,2393.2,2392.7,4.17932]
[1726011873721,4.72853,2393.2,2392.8,0.06252582]
[1726011874014,4.72853,2393.2,2392.7,4.17932]
[1726011874191,4.72853,2393.2,2392.9,0.06251529]
[1726011874392,0.55,2393.2,2392.8,0.06252582]
[1726011874610,0.55,2393.2,2393.0,0.06250476]
[1726011874914,0.55,2393.2,2393.1,0.06249423]
[1726011875122,0.55,2393.2,2392.7,4.17932]
[1726011875278,0.55,2393.2,2393.1,0.06249423]
[1726011875473,0.55,2393.2,2392.7,4.17932]
[1726011875774,0.55,2393.2,2393.1,0.06249423]
[1726011875992,0.55,2393.2,2392.7,4.17932]
[1726011876483,0.55,2393.2,2392.8,0.06252582]
[1726011876705,0.55,2393.2,2392.7,4.17932]
[1726011876915,0.55,2393.2,2392.9,0.06251529]
[1726011877086,0.55,2393.2,2392.7,4.17932]
[1726011877281,0.55,2393.2,2393.0,0.06250476]
[1726011877617,0.55,2393.2,2392.7,4.17932]
[1726011878217,0.55,2393.2,2392.8,0.06252582]
[1726011878717,0.55,2393.2,2392.9,0.06251529]
[1726011878904,0.55,2393.2,2392.7,4.17932]
[1726011879218,0.55,2393.2,2393.0,0.06250476]
[1726011879539,0.55,2393.2,2393.1,0.06249423]
[1726011879713,0.55,2393.2,2392.7,4.17932]
[1726011879912,0.55,2393.2,2393.1,0.06249423]
[1726011880111,0.55,2393.2,2392.7,4.17932]
[1726011880416,0.55,2393.2,2392.8,6.65285]
[1726011880584,0.55,2393.2,2393.1,0.06249423]
[1726011880920,0.55,2393.2,2392.8,6.65285]
[1726011881430,0.55,2393.2,2392.9,0.06251529]
[1726011882611,1.576714,2393.3,2393.0,4.17871]
[1726011883343,1.576714,2393.3,2393.1,0.06258023]
[1726011888193,1.576714,2393.3,2393.0,4.17871]
[1726011890495,2.89097533,2393.3,2392.9,4.2625908]
[1726011890723,2.89097533,2393.3,2393.1,0.06260315]
[1726011890946,2.89097533,2393.3,2392.9,4.2625908]
[1726011891234,2.89097533,2393.3,2393.2,0.06259262]
[1726011891540,2.89097533,2393.3,2393.2,0.06259835]
[1726011891835,2.89097533,2393.3,2392.9,4.2625908]
[1726011892012,2.89097533,2393.3,2393.2,0.06259835]
[1726011892212,2.89097533,2393.3,2393.0,6.53159]
[1726011892406,1.576714,2393.3,2393.2,0.06259835]
[1726011892605,1.576714,2393.3,2393.1,0.14617397]
[1726011892823,1.576714,2393.3,2393.2,0.06254675]
[1726011893140,1.576714,2393.3,2393.1,0.08356509]
[1726011893812,1.576714,2393.3,2393.2,4.24104675]
[1726011896850,1.31426133,2393.4,2393.2,4.24104675]
[1726011898519,1.31426133,2393.4,2393.2,5.32666287]
[1726011899750,1.31426133,2393.4,2393.2,4.24104675]
[1726011899963,1.31426133,2393.3,2393.2,4.24104675]
[1726011900121,1.75135193,2393.5,2393.2,4.24104675]
[1726011900122,1.31426133,2393.4,2393.2,4.24104675]
[1726011900458,1.31426133,2393.3,2393.2,0.06254675]
[1726011900764,1.75135193,2393.3,2393.2,4.24104675]
[1726011901259,1.75135193,2393.3,2393.2,0.06254675]
[1726011901562,4.05695193,2393.3,2393.2,0.06254675]
[1726011902619,4.05835268,2393.3,2393.2,0.06254675]
[1726011902820,1.75282858,2393.3,2393.2,4.24101675]
[1726011903056,1.75282858,2393.3,2393.2,4.17847]
[1726011903057,1.31458348,2393.3,2393.2,4.17847]
[1726011903272,1.31465692,2393.4,2393.3,2.3529]
[1726011903451,1.31465692,2393.5,2393.4,4.17815]
[1726011903782,1.31465692,2393.6,2393.5,4.17798]
[1726011903925,1.75282858,2393.7,2393.4,5.39132275]
[1726011904119,1.75282858,2393.6,2393.5,0.0623203]
[1726011904330,5.69083018,2393.7,2393.5,0.0623203]
[1726011904529,2.19119029,2393.6,2393.5,0.0623203]
[1726011904756,2.19119029,2393.6,2393.2,8.35681]
[1726011904958,1.31475918,2393.4,2393.2,8.35681]
[1726011905127,1.31475918,2393.4,2393.2,9.427781]
[1726011905456,1.31475918,2393.4,2393.3,4.17833]
[1726011906533,1.31475918,2393.5,2393.4,4.17815]
[1726011910231,1.31475918,2393.6,2393.4,4.17815]
[1726011913182,1.31475918,2393.6,2393.2,1.070971]
[1726011913372,3.80875918,2393.5,2393.2,4.17847]
[1726011913690,3.80875918,2393.5,2393.3,0.06234136]
[1726011913831,1.31475918,2393.4,2393.3,0.06234136]
[1726011914179,8.97516224,2393.4,2392.8,4.17911]
[1726011914337,1.86426748,2393.3,2392.9,4.179]
[1726011914534,1.86426748,2393.3,2392.9,4.24138348]
[1726011914765,1.86426748,2393.3,2392.9,4.24131348]
[1726011914974,1.86426748,2393.3,2392.9,8.42025348]
[1726011915143,1.86426748,2393.3,2393.0,4.17884]
[1726011915458,1.86426748,2393.3,2393.1,0.06236242]
[1726011916347,1.31426748,2393.3,2393.1,4.24093242]
[1726011916550,1.31426748,2393.4,2393.1,5.34071696]
[1726011917631,1.31426748,2393.5,2393.2,4.1784]
[1726011917861,1.31426748,2393.5,2393.3,0.06234136]
[1726011918080,1.31426748,2393.5,2393.2,8.35679]
[1726011918277,1.31426748,2393.5,2393.3,0.06234136]
[1726011918646,1.31426748,2393.5,2393.2,4.17839]
[1726011918872,1.31426748,2393.5,2393.4,0.06231363]
[1726011919074,1.31426748,2393.5,2393.3,0.06232416]
[1726011919383,1.3146151,2393.5,2393.4,0.06231363]
[1726011919764,1.3146151,2393.5,2393.4,4.17815]
[1726011919970,1.3146151,2393.7,2393.5,4.17788]
[1726011920337,1.3146151,2393.7,2393.6,0.06221808]
[1726011920916,1.3146151,2393.7,2393.6,4.24001808]
[1726011921068,1.3407978,2393.8,2393.6,4.24001808]
[1726011921272,1.3146151,2393.7,2393.6,4.24001808]
[1726011922338,1.3146151,2393.7,2393.6,0.06221808]
[1726011922873,1.3146151,2393.7,2393.3,6.75638469]
[1726011923298,1.3146151,2393.7,2393.4,0.06214173]
[1726011924179,1.3146151,2393.6,2393.4,0.06214173]
[1726011924342,1.3146151,2393.7,2393.4,0.06214173]
[1726011926045,1.3146151,2393.7,2393.4,4.24028173]
[1726011926786,1.3146151,2393.7,2393.4,0.06214173]
[1726011926968,1.3146151,2393.6,2393.4,0.06214173]
[1726011927145,1.3146151,2393.6,2393.2,4.17838]
[1726011927348,1.3146151,2393.6,2393.5,0.0621312]
[1726011927548,1.3146151,2393.6,2393.2,4.17837]
[1726011928055,1.3146151,2393.6,2393.3,0.06215226]
[1726011928271,2.9470167,2393.4,2392.8,4.1791]
[1726011928472,6.0430551,2393.3,2392.8,4.1791]
[1726011928782,6.0430551,2393.3,2392.9,0.06219438]
[1726011929639,2.4336,2393.2,2392.9,0.06219438]
[1726011929961,3.7482151,2393.2,2392.7,4.2628467]
[1726011930283,3.7482151,2393.2,2392.7,8.4421167]
[1726011930486,3.7482151,2393.2,2392.8,0.06238255]
[1726011930642,3.7482151,2393.2,2392.8,4.1792]
[1726011930846,3.7482151,2393.2,2392.9,0.06237202]
[1726011932874,3.7482151,2393.2,2392.7,8.35854]
[1726011933077,3.7482151,2393.2,2392.8,0.06238255]
[1726011933271,3.7482151,2393.2,2392.7,8.35854]
[1726011933653,3.7482151,2393.2,2392.8,0.06238255]
[1726011933952,3.7482151,2393.2,2392.7,8.35854]
[1726011934154,3.7482151,2393.2,2392.9,0.06237202]
[1726011934362,3.7482151,2393.2,2392.7,8.35854]
[1726011934363,3.7482151,2393.2,2392.8,0.06238255]
[1726011934552,3.7482151,2393.2,2393.0,0.06236149]
[1726011934784,3.7482151,2393.2,2392.9,0.06237202]
[1726011934983,3.7482151,2393.2,2393.1,0.06235096]
[1726011935154,3.7482151,2393.2,2393.0,0.06236149]
[1726011935355,3.7482151,2393.2,2393.1,0.06235096]
[1726011935661,3.7482151,2393.2,2392.7,8.35854]
[1726011936174,3.7482151,2393.2,2392.8,0.06238255]
[1726011936373,2.4336,2393.2,2392.8,0.06238255]
[1726011936580,3.7482151,2393.2,2392.7,8.35854]
[1726011936756,3.7482151,2393.2,2392.9,0.06237202]
[1726011936956,3.7482151,2393.2,2392.8,0.06238255]
[1726011937161,3.7482151,2393.2,2393.0,0.06236149]
[1726011937399,3.7482151,2393.2,2392.9,0.06237202]
[1726011937554,3.7482151,2393.2,2393.1,0.06235096]
[1726011937755,3.7482151,2393.2,2393.0,0.06236149]
[1726011938090,3.7482151,2393.2,2393.1,0.06235096]
[1726011938787,3.7482151,2393.2,2392.8,4.1792]
[1726011938953,3.7482151,2393.2,2393.1,0.06235096]
[1726011939151,3.7482151,2393.2,2392.8,4.1792]
[1726011939653,3.7482151,2393.2,2392.9,0.06237202]
[1726011940278,5.3806167,2393.2,2392.9,0.06237202]
[1726011940490,5.3806167,2393.2,2392.7,8.35855]
[1726011940986,5.3806167,2393.2,2392.8,0.06260608]
[1726011941386,5.3806167,2393.2,2392.7,8.35855]
[1726011941684,5.3806167,2393.2,2392.9,0.06259554]
[1726011941883,5.3806167,2393.2,2392.8,0.06260608]
[1726011942093,5.3806167,2393.2,2393.0,0.06258501]
[1726011942276,5.3806167,2393.2,2392.9,0.06259554]
[1726011942597,5.3806167,2393.2,2393.0,0.06258501]
[1726011943094,5.3806167,2393.2,2392.7,8.35855]
[1726011943645,3.7482151,2393.2,2392.8,0.06260608]
[1726011943850,3.7482151,2393.2,2392.7,8.35855]
[1726011944357,3.7482151,2393.2,2392.8,0.06260608]
[1726011944883,3.7482151,2393.2,2392.7,8.35855]
[1726011945086,3.7482151,2393.2,2392.9,0.06259554]
[1726011945246,3.7482151,2393.2,2392.8,0.06260608]
[1726011945447,3.7482151,2393.2,2393.0,0.06258501]
[1726011945685,3.7482151,2393.2,2392.7,8.35855]
[1726011945686,3.7482151,2393.2,2392.9,0.06259554]
[1726011945895,3.7482151,2393.2,2393.1,0.06257448]
[1726011946055,3.7482151,2393.2,2393.0,0.06258501]
[1726011946259,3.7482151,2393.2,2392.7,8.35855]
[1726011946467,7.9267151,2393.2,2393.1,0.06257448]
[1726011946657,7.9267151,2393.2,2392.7,8.35855]
[1726011946854,7.9267151,2393.2,2393.1,0.06257448]
[1726011947083,7.9267151,2393.2,2392.7,8.35855]
[1726011947508,7.9267151,2393.2,2392.8,0.062629]
[1726011947814,7.9267151,2393.2,2392.7,4.17927]
[1726011948008,8.2943416,2393.0,2392.9,0.06261847]
[1726011948210,4.17902,2392.9,2392.8,0.062629]
[1726011948417,0.55,2392.9,2392.4,0.08359012]
[1726011948714,1.8646151,2392.9,2392.4,0.08359012]
[1726011948873,1.8646151,2392.9,2392.5,0.0626778]
[1726011950187,6.0437051,2392.9,2392.5,0.0626778]
[1726011950611,6.0437051,2392.9,2392.3,4.17992]
[1726011950781,6.0437051,2392.9,2392.6,0.06277619]
[1726011950988,6.0437051,2392.9,2392.3,4.17992]
[1726011951189,6.0437051,2392.9,2392.7,0.06276565]
[1726011951553,2.483,2392.7,2392.0,4.36270564]
[1726011951676,2.483,2392.3,2392.0,4.36270564]
[1726011951877,2.483,2392.3,2391.9,4.2068327]
[1726011952319,1.31329939,2392.5,2392.0,4.18057]
[1726011952522,2.483,2392.5,2392.0,4.18057]
[1726011952753,1.31329939,2392.6,2392.0,5.25292077]
[1726011952879,1.31329939,2392.6,2392.1,4.18037]